fUSD/lending_fUSD_20250905
["ID","MTS","AMOUNT","RATE_DAILY","PERIOD"]
[383774803,1757110270437,-400.0,0.00041373,120]
[383774804,1757110270448,-409.54,0.00041643,120]
[383774805,1757110270461,-647.03,0.00041643,120]
[383774806,1757110270477,-656.12,0.00041643,120]
[383774807,1757110270489,-610.42,0.00041643,120]
[383774808,1757110270499,-400.0,0.00041643,120]
[383774809,1757110270510,-585.76,0.00041643,120]
[383774810,1757110270520,-3134.44,0.00041643,5]
[383774811,1757110270531,-170.35635111,0.00041643,120]
[383774812,1757110270543,-404.05,0.00041643,120]
[383774813,1757110270555,-478.22,0.00041643,120]
[383774814,1757110270568,-555.03,0.00041643,120]
[383774815,1757110270580,-522.98,0.00041643,120]
[383774816,1757110270591,-617.32,0.00041643,120]
[383774817,1757110270602,-896.9,0.00041643,120]
[383774818,1757110270612,-520.03,0.00041643,120]
[383774819,1757110270623,-558.4,0.00041643,120]
[383774820,1757110270633,-649.24,0.00041643,120]
[383774821,1757110270647,-614.37,0.00041643,120]
[383774822,1757110270659,-538.02,0.00041643,120]
[383774823,1757110270671,-437.77,0.00041643,120]
[383774824,1757110270681,-556.89,0.00041643,120]
[383774825,1757110270692,-474.27,0.00041643,120]
[383774826,1757110270703,-439.12,0.00041643,120]
[383774827,1757110270715,-415.35,0.00041643,120]
[383774828,1757110270726,-815.21,0.00041643,120]
[383774829,1757110270738,-789.73,0.00041643,120]
[383774830,1757110270749,-520.84,0.00041643,120]
[383774831,1757110270761,-406.06,0.00041643,120]
[383774832,1757110270772,-734.64,0.00041643,120]
[383774833,1757110270783,-545.69,0.00041643,120]
[383774834,1757110270794,-3990.88,0.00041643,120]
[383774835,1757110270806,-425.1,0.00041643,120]
[383774836,1757110270818,-715.64,0.00041643,120]
[383774837,1757110270830,-1117.99,0.00041643,120]
[383774838,1757110270841,-218.6170641,0.00041643,120]
[383774839,1757110270853,-436.28,0.00041643,120]
[383774840,1757110270864,-466.46,0.00041643,120]
[383774841,1757110270876,-420.62,0.00041643,120]
[383774842,1757110270888,-400.0,0.00041643,120]
[383774843,1757110270899,-602.48,0.00041643,30]
[383774844,1757110270911,-746.0,0.00041644,2]
[383774845,1757110270923,-401.76402095,0.00041647,120]
[383774846,1757110270934,-8504.1095045,0.00041717,2]
[383774847,1757110270946,-409.62110616,0.00041917,120]
[383774848,1757110270958,-647.26554261,0.00041917,120]
[383774849,1757110270970,-656.17381464,0.00041917,120]
[383774850,1757110270981,-610.5557912,0.00041917,120]
[383774851,1757110270994,-184.65055591,0.00041917,120]
[383774852,1757110271005,-585.89553766,0.00041917,120]
[383774853,1757110271018,-3134.58114513,0.00041917,5]
[383774854,1757110271030,-404.28451035,0.00041917,120]
[383774855,1757110271041,-478.33,0.00041917,120]
[383774856,1757110271052,-555.1,0.00041917,120]
[383774857,1757110271063,-523.01995887,0.00041917,120]
[383774858,1757110271074,-617.41,0.00041917,120]
[383774859,1757110271085,-897.12426024,0.00041917,120]
[383774860,1757110271096,-520.07421606,0.00041917,120]
[383774861,1757110271107,-558.62,0.00041917,120]
[383774862,1757110271118,-649.44883748,0.00041917,120]
[383774863,1757110271129,-614.5652184,0.00041917,120]
[383774864,1757110271141,-538.02456767,0.00041917,120]
[383774865,1757110271153,-437.87229727,0.00041917,120]
[383774866,1757110271164,-556.94387752,0.00041917,120]
[383774867,1757110271174,-474.28493956,0.00041917,120]
[383774868,1757110271185,-439.29064963,0.00041917,120]
[383774869,1757110271196,-415.43,0.00041917,120]
[383774870,1757110271207,-815.31322854,0.00041917,120]
[383774871,1757110271217,-789.84746615,0.00041917,120]
[383774872,1757110271228,-521.07801165,0.00041917,120]
[383774873,1757110271239,-406.19682376,0.00041917,120]
[383774874,1757110271250,-734.77132998,0.00041917,120]
[383774875,1757110271260,-545.703852,0.00041917,120]
[383774876,1757110271271,-3991.11842936,0.00041917,120]
[383774877,1757110271282,-425.16298864,0.00041917,120]
[383774878,1757110271292,-715.75,0.00041917,120]
[383774879,1757110271303,-1118.01714168,0.00041917,120]
[383774880,1757110271316,-436.34776031,0.00041917,120]
[383774881,1757110271326,-466.67093007,0.00041917,120]
[383774882,1757110271337,-420.73,0.00041917,120]
[383774883,1757110271348,-368.84336866,0.00041917,120]
[383774884,1757110271359,-746.0,0.00041918,2]
[383774885,1757110271370,-2631.81,0.00042,30]
[383774886,1757110271380,-2047.62509852,0.0004203,15]
[383774887,1757110271392,-3855.14515005,0.00042119,15]
[383774888,1757110271403,-746.0,0.00042192,2]
[383774889,1757110271414,-746.0,0.00042466,2]
[383774890,1757110271425,-500.0,0.00042468,2]
[383774891,1757110271436,-500.0,0.00042468,120]
[383774892,1757110271449,-175.42932374,0.00042663,2]
[383774893,1757110271461,-186.36379049,0.00042668,2]
[383774894,1757110271473,-746.0,0.0004274,2]
[383774895,1757110271485,-1897.5233156,0.00042773,2]
[383774896,1757110271497,-746.0,0.00043014,2]
[383774897,1757110271509,-746.0,0.00043288,2]
[383774898,1757110271519,-2240.0,0.00043346,2]
[383774899,1757110271532,-746.0,0.00043562,2]
[383774900,1757110271543,-623.89,0.000436,14]
[383774901,1757110271554,-746.0,0.00043836,2]
[383774902,1757110271564,-1231.3,0.0004389,30]
[383774903,1757110271575,-4635.91,0.00044,14]
[383774904,1757110271585,-746.0,0.0004411,2]
[383774905,1757110271596,-218.31,0.000442,30]
[383774906,1757110271607,-746.0,0.00044384,2]
[383774907,1757110271617,-155.02,0.00044521,2]
[383774908,1757110271629,-746.0,0.00044658,2]
[383774909,1757110271640,-161.79,0.00044841,30]
[383774910,1757110271651,-469.39,0.00044841,30]
[383774911,1757110271663,-746.0,0.00044932,2]
[383774912,1757110271674,-150.0,0.0004499,120]
[383774913,1757110271685,-245.0,0.00045,30]
[383774914,1757110271695,-746.0,0.00045206,2]
[383774915,1757110271707,-548.0,0.00045254,60]
[383774916,1757110271718,-746.0,0.0004548,2]
[383774917,1757110271729,-168.19,0.00045701,2]
[383774918,1757110271739,-746.0,0.00045754,2]
[383774919,1757110271751,-634.77746184,0.00046,120]
[383774920,1757110271762,-231.2605,0.00046,30]
[383774921,1757110271774,-231.2605,0.00046,30]
[383774922,1757110271785,-231.2605,0.00046,30]
[383774923,1757110271796,-231.2605,0.00046,30]
[383774924,1757110271807,-231.26051,0.00046,30]
[383774925,1757110271818,-231.2605,0.00046,30]
[383774926,1757110271829,-746.0,0.00046028,2]
[383774927,1757110271840,-746.0,0.00046301,2]
[383774928,1757110271850,-183.4,0.00046535,120]
[383774929,1757110271861,-746.0,0.00046575,2]
[383774930,1757110271871,-1200.0,0.000466,2]
[383774931,1757110271882,-801.61,0.000468,14]
[383774932,1757110271892,-623.89,0.000468,14]
[383774933,1757110271903,-746.0,0.00046849,2]
[383774934,1757110271913,-746.0,0.00047123,2]
[383774935,1757110271923,-757.49827259,0.00047397,2]
[383774936,1757110271935,-634.77746184,0.00048,120]
[383774937,1757110271945,-2047.62509852,0.00048644,15]
[383774938,1757110271955,-3855.14515005,0.00048721,15]
[383774939,1757110271966,-2631.81,0.00049,30]
[383774940,1757110271978,-768.0,0.00049779,60]
[383774941,1757110271989,-153.0,0.00049792,120]
[383774942,1757110271999,-153.0,0.00049792,120]
[383774943,1757110272010,-153.0,0.00049792,120]
[383774944,1757110272020,-153.0,0.00049792,120]
[383774945,1757110272031,-153.0,0.00049792,120]
[383774946,1757110272041,-153.0,0.00049792,120]
[383774947,1757110272053,-153.0,0.00049792,120]
[383774948,1757110272064,-153.0,0.00049792,120]
[383774949,1757110272075,-153.0,0.00049792,120]
[383774950,1757110272085,-153.0,0.00049792,120]
[383774951,1757110272096,-153.0,0.00049792,120]
[383774952,1757110272107,-150.0,0.0004999,120]
[383774953,1757110272117,-218.31,0.0005,30]
[383774954,1757110272129,-1000.0,0.0005,120]
[383774955,1757110272140,-1269.55492367,0.00051,120]
[383774956,1757110272152,-4635.91,0.00051,14]
[383774957,1757110272163,-1000.0,0.00051,120]
[383774958,1757110272174,-1000.0,0.00052,120]
[383774959,1757110272186,-1200.0,0.000521,2]
[383774960,1757110272199,-183.4,0.00052759,120]
[383774961,1757110272210,-1000.0,0.00053,120]
[383774962,1757110272222,-256.92,0.00053192,11]
[383774963,1757110272234,-574.558,0.00053492,99]
[383774964,1757110272245,-1586.94365459,0.00054,120]
[383774965,1757110272257,-1000.0,0.00054,120]
[383774966,1757110272269,-430.0,0.00054457,11]
[383774967,1757110272280,-1075.0,0.00054757,60]
[383774968,1757110272291,-2000.0,0.00055,120]
[383774969,1757110272303,-2047.62509852,0.00055257,15]
[383774970,1757110272317,-3855.14515005,0.00055324,15]
[383774971,1757110272329,-634.77,0.000557,11]
[383774972,1757110272339,-2000.0,0.00056,120]
[383774973,1757110272352,-2631.81,0.00056,30]
[383774974,1757110272362,-1586.94365458,0.00056,120]
[383774975,1757110272375,-478.15,0.0005686,11]
[383774976,1757110272387,-2000.0,0.00057,120]
[383774977,1757110272399,-744.0,0.000575,30]
[383774978,1757110272411,-2000.0,0.00058,120]
[383774979,1757110272422,-183.4,0.00058983,120]
[383774980,1757110272433,-4635.91,0.00059,30]
[383774981,1757110272444,-2000.0,0.00059,120]
[383774982,1757110272454,-500.0,0.00059178,2]
[383774983,1757110272467,-623.89,0.000592,60]
[383774984,1757110272479,-155.02,0.00059932,2]
[383774985,1757110272491,-2000.0,0.0006,120]
[383774986,1757110272772,-536.0,0.00060233,90]
[383774987,1757110272782,-14690.215,0.00060625,120]
[383774988,1757110272792,-14690.215,0.00060625,120]
[383774989,1757110272802,-14690.216,0.00060625,120]
[383774990,1757110272811,-14690.215,0.00060625,120]
[383774991,1757110272821,-14690.216,0.00060625,120]
[383774992,1757110272830,-2000.0,0.00061,120]
[383774993,1757110272840,-150.0,0.000617,2]
[383774994,1757110272850,-2047.62509852,0.00061871,15]
[383774995,1757110272859,-3855.14515005,0.00061927,15]
[383774996,1757110272868,-2000.0,0.00062,120]
[383774997,1757110272877,-150.0,0.0006248,2]
[383774998,1757110272887,-744.99306292,0.00063,30]
[383774999,1757110272896,-2000.0,0.00063,120]
[383775000,1757110272905,-2631.81,0.00063,30]
[383775001,1757110272915,-150.0,0.0006326,2]
[383775002,1757110272924,-2000.0,0.00064,120]
[383775003,1757110272933,-150.0,0.0006404,2]
[383775004,1757110272943,-150.0,0.00064078,30]
[383775005,1757110272952,-150.0,0.00064081,30]
[383775006,1757110272962,-150.0,0.00064092,30]
[383775007,1757110272972,-150.0,0.00064372,30]
[383775008,1757110272981,-150.0,0.00064403,30]
[383775009,1757110272991,-150.0,0.00064441,30]
[383775010,1757110273000,-150.0,0.00064597,30]
[383775011,1757110273009,-150.0,0.00064626,30]
[383775012,1757110273018,-150.0,0.00064713,30]
[383775013,1757110273027,-150.0,0.00064787,30]
[383775014,1757110273037,-150.0,0.0006483,2]
[383775015,1757110273046,-150.0,0.00064848,30]
[383775016,1757110273055,-150.0,0.00064865,30]
[383775017,1757110273064,-150.0,0.00064962,30]
[383775018,1757110273073,-150.0,0.00064989,30]
[383775019,1757110273083,-2000.0,0.00065,120]
[383775020,1757110273092,-183.4,0.00065208,120]
[383775021,1757110273102,-150.0,0.0006561,2]
[383775022,1757110273111,-1315.9,0.00065753,120]
[383775023,1757110273120,-1315.9,0.00065779,120]
[383775024,1757110273129,-1315.9,0.00065806,120]
[383775025,1757110273139,-1315.9,0.00065832,120]
[383775026,1757110273148,-605.8,0.00065858,120]
[383775027,1757110273157,-2000.0,0.00066,120]
[383775028,1757110273166,-4635.91,0.00066,30]
[383775029,1757110273176,-2188.20262392,0.00066201,120]
[383775030,1757110273185,-150.0,0.0006639,2]
[383775031,1757110273194,-2000.0,0.00067,120]
[383775032,1757110273203,-150.0,0.0006717,2]
[383775033,1757110273213,-150.0,0.0006795,2]
[383775034,1757110273222,-2000.0,0.00068,120]
[383775035,1757110273231,-4057.7440054,0.00068479,5]
[383775036,1757110273241,-2047.62509852,0.00068485,15]
[383775037,1757110273250,-3855.14515005,0.00068529,15]
[383775038,1757110273259,-1152.5057121,0.00068558,5]
[383775039,1757110273268,-2295.1944096,0.00068558,5]
[383775040,1757110273278,-56792.0220298,0.00068558,5]
[383775041,1757110273287,-4892.0902277,0.000686,5]
[383775042,1757110273296,-623.89,0.000686,60]
[383775043,1757110273305,-150.0,0.0006873,2]
[383775044,1757110273318,-2000.0,0.00069,120]
[383775045,1757110273327,-150.0,0.0006952,2]
[383775046,1757110273336,-591.3282963,0.00069631,120]
[383775047,1757110273345,-2000.0,0.0006965,14]
[383775048,1757110273355,-311.88373687,0.00069667,90]
[383775049,1757110273365,-1613.39598937,0.0006975,120]
[383775050,1757110273374,-782.44095414,0.0006975,120]
[383775051,1757110273384,-1400.0,0.000699,25]
[383775052,1757110273395,-500.0,0.00069999,2]
[383775053,1757110273405,-500.0,0.00069999,2]
[383775054,1757110273414,-600.0,0.00069999,120]
[383775055,1757110273424,-200.0,0.00069999,120]
[383775056,1757110273433,-207.4,0.00069999,120]
[383775057,1757110273444,-215.0738,0.00069999,120]
[383775058,1757110273455,-223.0315306,0.00069999,120]
[383775059,1757110273465,-231.28369723,0.00069999,120]
[383775060,1757110273473,-239.84119403,0.00069999,120]
[383775061,1757110273483,-248.71531821,0.00069999,120]
[383775062,1757110273494,-257.91778498,0.00069999,120]
[383775063,1757110273504,-267.46074303,0.00069999,120]
[383775064,1757110273514,-277.35679052,0.00069999,120]
[383775065,1757110273524,-287.61899177,0.00069999,120]
[383775066,1757110273533,-298.26089446,0.00069999,120]
[383775067,1757110273542,-309.29654756,0.00069999,120]
[383775068,1757110273552,-320.74051982,0.00069999,120]
[383775069,1757110273561,-332.60791905,0.00069999,120]
[383775070,1757110273570,-344.91441206,0.00069999,120]
[383775071,1757110273580,-357.6762453,0.00069999,120]
[383775072,1757110273589,-370.91026638,0.00069999,120]
[383775073,1757110273599,-384.63394623,0.00069999,120]
[383775074,1757110273608,-398.86540225,0.00069999,120]
[383775075,1757110273619,-344524.02484548,0.0007,120]
[383775076,1757110273629,-2000.0,0.0007,120]
[383775077,1757110273639,-150.0,0.0007,120]
[383775078,1757110273647,-1000.0,0.0007,30]
[383775079,1757110273656,-85867.36653607,0.0007,120]
[383775080,1757110273665,-2000.0,0.0007,120]
[383775081,1757110273675,-610.94,0.0007,30]
[383775082,1757110273683,-903.7613615,0.00070006,6]
[383775083,1757110273692,-42115.61965281,0.0007015,2]
[383775084,1757110273701,-150.0,0.000703,2]
[383775085,1757110273711,-591.3282964,0.00070376,120]
[383775086,1757110273719,-1000.0,0.000706,14]
[383775087,1757110273728,-218.31,0.000707,60]
[383775088,1757110273738,-10000.0,0.00071,120]
[383775089,1757110273747,-641.28,0.00071,30]
[383775090,1757110273757,-150.0,0.0007108,2]
[383775091,1757110273766,-153.0,0.000713,120]
[383775092,1757110273776,-183.4,0.00071432,120]
[383775093,1757110273786,-151.0,0.000715,120]
[383775094,1757110273796,-150.0,0.0007186,2]
[383775095,1757110273805,-246.58278615,0.00072,30]
[383775096,1757110273815,-10000.0,0.00072,120]
[383775097,1757110273824,-150.0,0.00072,120]
[383775098,1757110273834,-574.557,0.00072328,120]
[383775099,1757110273843,-150.0,0.0007264,2]
[383775100,1757110273853,-371.12358089,0.00073,120]
[383775101,1757110273862,-153.0,0.000731,120]
[383775102,1757110273872,-150.0,0.0007342,2]
[383775103,1757110273881,-623.89,0.000737,60]
[383775104,1757110273891,-150.0,0.00074,120]
[383775105,1757110273900,-3009.3,0.00074,120]
[383775106,1757110273910,-400.0,0.00074,120]
[383775107,1757110273919,-150.0,0.0007421,2]
[383775108,1757110273928,-1000.0,0.00074399,120]
[383775109,1757110273938,-500.0,0.00074439,2]
[383775110,1757110273947,-500.0,0.00074439,2]
[383775111,1757110273957,-500.0,0.00074439,2]
[383775112,1757110273967,-501540.0,0.0007444,30]
[383775113,1757110273977,-151.0,0.000746,120]
[383775114,1757110273986,-2000.0,0.0007465,48]
[383775115,1757110273997,-700.0,0.00074747,120]
[383775116,1757110274008,-2000.0,0.0007486,48]
[383775117,1757110274019,-444.0,0.00074986,120]
[383775118,1757110274030,-2000.0,0.00075,120]
[383775119,1757110274039,-150.0,0.00075,120]
[383775120,1757110274051,-25000.0,0.00075,120]
[383775121,1757110274063,-153.0,0.00075,120]
[383775122,1757110274073,-301.45740272,0.00075,120]
[383775123,1757110274084,-2047.62509852,0.00075099,15]
[383775124,1757110274096,-3855.14515005,0.00075132,15]
[383775125,1757110274107,-218.31,0.000752,60]
[383775126,1757110274116,-2000.0,0.0007523,48]
[383775127,1757110274125,-155.02,0.00075342,120]
[383775128,1757110274135,-2000.0,0.0007596,48]
[383775129,1757110274144,-400.0,0.00076,120]
[383775130,1757110274153,-2000.0,0.0007639,48]
[383775131,1757110274162,-2000.0,0.0007658,52]
[383775132,1757110274172,-533.22522749,0.000768,120]
[383775133,1757110274181,-153.0,0.000768,120]
[383775134,1757110274191,-2000.0,0.0007696,48]
[383775135,1757110274201,-250.0,0.00077,60]
[383775136,1757110274210,-60000.0,0.0007714,120]
[383775137,1757110274220,-905.4050697,0.00077195,8]
[383775138,1757110274230,-12672.0129706,0.00077285,8]
[383775139,1757110274239,-1091.5728759,0.00077332,8]
[383775140,1757110274248,-183.4,0.00077656,120]
[383775141,1757110274257,-151.0,0.000777,120]
[383775142,1757110274267,-5000.0,0.000779,120]
[383775143,1757110274276,-150.0,0.00078,120]
[383775144,1757110274286,-400.0,0.00078,120]
[383775145,1757110274295,-2000.0,0.0007844,53]
[383775146,1757110274304,-2035.0,0.0007856,56]
[383775147,1757110274316,-2000.0,0.0007865,52]
[383775148,1757110274327,-1000.0,0.000787,120]
[383775149,1757110274336,-153.0,0.000787,120]
[383775150,1757110274348,-2000.0,0.0007878,53]
[383775151,1757110274359,-2000.0,0.0007896,49]
[383775152,1757110274370,-10000.0,0.00079,120]
[383775153,1757110274380,-2914.95,0.00079,120]
[383775154,1757110274394,-5000.0,0.00079,120]
[383775155,1757110274403,-218.31,0.00079,60]
[383775156,1757110274413,-202.0231782,0.0007914,9]
[383775157,1757110274423,-2827.5082835,0.00079232,9]
[383775158,1757110274432,-243.5628306,0.0007928,9]
[383775159,1757110274442,-2000.0,0.0007944,53]
[383775160,1757110274453,-2000.0,0.0007965,51]
[383775161,1757110274463,-2000.0,0.0007968,53]
[383775162,1757110274474,-2000.0,0.0007986,40]
[383775163,1757110274486,-2578.11942912,0.000799,120]
[383775164,1757110274496,-1800.0,0.000799,29]
[383775165,1757110274506,-380.57468923,0.00079999,2]
[383775166,1757110274517,-2000.0,0.0008,120]
[383775167,1757110274527,-200.0,0.0008,120]
[383775168,1757110274537,-10000.0,0.0008,120]
[383775169,1757110274546,-10000.0,0.0008,30]
[383775170,1757110274556,-500.0,0.0008,21]
[383775171,1757110274567,-10653.73832818,0.0008,120]
[383775172,1757110274576,-300.0,0.0008,120]
[383775173,1757110274588,-200.0,0.0008,8]
[383775174,1757110274599,-195974.60489016,0.0008,2]
[383775175,1757110274608,-150.0,0.0008,120]
[383775176,1757110274617,-150.0,0.0008,120]
[383775177,1757110274627,-25000.0,0.0008,120]
[383775178,1757110274638,-1000.0,0.0008,120]
[383775179,1757110274648,-200.0,0.0008,120]
[383775180,1757110274657,-150.0,0.0008,90]
[383775181,1757110274667,-50138.32513099,0.0008,120]
[383775182,1757110274677,-935.76867466,0.0008,120]
[383775183,1757110274687,-15683.52997659,0.0008,30]
[383775184,1757110274697,-4635.91,0.0008,30]
[383775185,1757110274707,-335.15669519,0.000801,30]
[383775186,1757110274718,-153.0,0.000805,120]
[383775187,1757110274727,-151.0,0.000807,120]
[383775188,1757110274737,-890.81971936,0.000809,2]
[383775189,1757110274746,-1051.7051604,0.00080945,10]
[383775190,1757110274757,-10000.0,0.00081,120]
[383775191,1757110274767,-99957.040158,0.00081,120]
[383775192,1757110274777,-623.89,0.00081,60]
[383775193,1757110274786,-3011.17,0.000814,120]
[383775194,1757110274796,-2047.62509852,0.00081712,15]
[383775195,1757110274807,-3855.14515005,0.00081735,15]
[383775196,1757110274817,-10000.0,0.00082,120]
[383775197,1757110274826,-150.0,0.00082,120]
[383775198,1757110274836,-400.0,0.00082,120]
[383775199,1757110274845,-153.0,0.000824,120]
[383775200,1757110274855,-2000.0,0.0008244,45]
[383775201,1757110274864,-10000.0,0.00083,120]
[383775202,1757110274873,-151.0,0.000838,120]
[383775203,1757110274883,-183.4,0.0008388,120]
[383775204,1757110274894,-300.0,0.00084,120]
[383775205,1757110274904,-10000.0,0.00084,120]
[383775206,1757110274914,-2631.81,0.00084,60]
[383775207,1757110274923,-153.0,0.000842,120]
[383775208,1757110274933,-2000.0,0.0008444,53]
[383775209,1757110274942,-2000.0,0.00084444,61]
[383775210,1757110274952,-5000.0,0.000849,120]
[383775211,1757110274962,-1000.0,0.00084999,120]
[383775212,1757110274972,-2000.0,0.00085,120]
[383775213,1757110274981,-5000.0,0.00085,120]
[383775214,1757110274991,-150.0,0.00085,120]
[383775215,1757110275000,-25000.0,0.00085,120]
[383775216,1757110275010,-259.0196961,0.000852,18]
[383775217,1757110275020,-1561.61,0.000853,120]
[383775218,1757110275030,-2000.0,0.0008536,49]
[383775219,1757110275040,-32746.70160831,0.000859,120]
[383775220,1757110275050,-10017.27725341,0.0008597,120]
[383775221,1757110275059,-400.0,0.00086,120]
[383775222,1757110275070,-449.04242172,0.00086,2]
[383775223,1757110275079,-153.0,0.000861,120]
[383775224,1757110275089,-151.0,0.000868,120]
[383775225,1757110275099,-2000.0,0.0008693,51]
[383775226,1757110275109,-150.0,0.00087,120]
[383775227,1757110275119,-218.31,0.00087,60]
[383775228,1757110275129,-4635.91,0.00087,30]
[383775229,1757110275140,-300.0,0.000874,120]
[383775230,1757110275150,-1059.71981844,0.000878,120]
[383775231,1757110275159,-2000.0,0.0008786,53]
[383775232,1757110275170,-2000.0,0.0008786,48]
[383775233,1757110275179,-153.0,0.000879,120]
[383775234,1757110275189,-2000.0,0.0008796,45]
[383775235,1757110275199,-1000.0,0.00088,2]
[383775236,1757110275208,-26346.1440961,0.00088,120]
[383775237,1757110275218,-200.0,0.00088,120]
[383775238,1757110275229,-1000.0,0.00088,120]
[383775239,1757110275240,-2047.62509852,0.00088326,15]
[383775240,1757110275251,-3855.14515005,0.00088337,15]
[383775241,1757110275261,-2000.0,0.0008863,48]
[383775242,1757110275271,-7788.88178211,0.000889,120]
[383775243,1757110275282,-2000.0,0.00089,120]
[383775244,1757110275292,-174.54822702,0.00089,120]
[383775245,1757110275302,-3656.77,0.000893,120]
[383775246,1757110275313,-2000.0,0.0008961,51]
[383775247,1757110275325,-2500.0,0.0008963,49]
[383775248,1757110275335,-3000.0,0.0008965,61]
[383775249,1757110275345,-2001.0,0.0008965,49]
[383775250,1757110275355,-2000.0,0.0008968,49]
[383775251,1757110275366,-153.0,0.000898,120]
[383775252,1757110275377,-151.0,0.000898,120]
[383775253,1757110275388,-202.41616477,0.000899,120]
[383775254,1757110275397,-300.0,0.00089999,60]
[383775255,1757110275407,-301.53,0.0009,2]
[383775256,1757110275417,-2000.0,0.0009,120]
[383775257,1757110275427,-300.0,0.0009,120]
[383775258,1757110275648,-10000.0,0.0009,120]
[383775259,1757110275658,-2048.43108707,0.0009,120]
[383775260,1757110275668,-150.0,0.0009,120]
[383775261,1757110275678,-5000.0,0.0009,120]
[383775262,1757110275688,-25000.0,0.0009,120]
[383775263,1757110275698,-1000.0,0.0009,120]
[383775264,1757110275707,-153994.86457034,0.0009,120]
[383775265,1757110275717,-300.0,0.00090103,60]
[383775266,1757110275727,-183.4,0.00090104,120]
[383775267,1757110275736,-480.96,0.000903,120]
[383775268,1757110275746,-155.02,0.00090753,120]
[383775269,1757110275755,-1000.0,0.00090999,120]
[383775270,1757110275765,-2631.81,0.00091,60]
[383775271,1757110275775,-574.558,0.00091164,120]
[383775272,1757110275785,-2000.0,0.0009144,53]
[383775273,1757110275794,-153.0,0.000916,120]
[383775274,1757110275804,-5000.0,0.000919,120]
[383775275,1757110275814,-1000.0,0.00091999,120]
[383775276,1757110275824,-3084.33,0.00092,120]
[383775277,1757110275834,-2631.81,0.00092,60]
[383775278,1757110275843,-2000.0,0.0009244,53]
[383775279,1757110275852,-3000.0,0.0009263,51]
[383775280,1757110275862,-2000.0,0.0009269,59]
[383775281,1757110275872,-151.0,0.000929,120]
[383775282,1757110275882,-1058.79727248,0.00093,120]
[383775283,1757110275892,-5095.52514842,0.00093,120]
[383775284,1757110275903,-153.0,0.000935,120]
[383775285,1757110275912,-5000.0,0.000939,120]
[383775286,1757110275922,-300.0,0.00094,120]
[383775287,1757110275932,-4635.91,0.00094,30]
[383775288,1757110275941,-2363.51,0.00094005,120]
[383775289,1757110275951,-17286.02,0.00094082,120]
[383775290,1757110275960,-1033.25,0.00094176,120]
[383775291,1757110275970,-5000.0,0.00094182,120]
[383775292,1757110275979,-5000.0,0.00094203,120]
[383775293,1757110275989,-5000.0,0.00094204,120]
[383775294,1757110276000,-1696.43,0.00094204,120]
[383775295,1757110276010,-672.48,0.0009421,120]
[383775296,1757110276020,-5000.0,0.00094246,120]
[383775297,1757110276030,-5000.0,0.00094298,120]
[383775298,1757110276039,-5000.0,0.00094313,120]
[383775299,1757110276050,-2000.0,0.0009436,63]
[383775300,1757110276060,-25000.0,0.00094391,120]
[383775301,1757110276070,-5000.0,0.00094393,120]
[383775302,1757110276080,-5000.0,0.00094396,120]